bitfinex/quotes_BTCUSD_20240715
["timestamp","ask_amount","ask_price","bid_price","bid_amount"]
[1721046092572,2.72229791,62657.0,62656.0,0.000913]
[1721046092780,2.70829791,62657.0,62656.0,0.000913]
[1721046092986,2.74623241,62657.0,62656.0,0.000913]
[1721046093319,2.73629791,62657.0,62656.0,0.000913]
[1721046093735,2.75029791,62657.0,62656.0,0.000913]
[1721046093866,2.73629791,62657.0,62656.0,0.000913]
[1721046094070,2.75029791,62657.0,62656.0,0.000913]
[1721046094504,2.91241582,62657.0,62656.0,0.000913]
[1721046094977,2.75029791,62657.0,62656.0,0.000913]
[1721046095162,2.93109991,62657.0,62656.0,0.000913]
[1721046095390,1.88890191,62657.0,62656.0,0.000913]
[1721046095569,2.24120191,62657.0,62656.0,0.000913]
[1721046096000,1.74120191,62657.0,62656.0,0.000913]
[1721046096408,2.24120191,62657.0,62656.0,0.000913]
[1721046097240,2.26420191,62657.0,62656.0,0.000913]
[1721046097652,1.76420191,62657.0,62656.0,0.000913]
[1721046097878,1.50211291,62657.0,62656.0,0.000913]
[1721046098039,1.18291491,62657.0,62656.0,0.000913]
[1721046098491,1.50211291,62657.0,62656.0,0.000913]
[1721046099002,1.46011291,62657.0,62656.0,0.000913]
[1721046099141,1.17791491,62657.0,62656.0,0.000913]
[1721046099360,0.19011791,62657.0,62656.0,0.1751065]
[1721046099673,0.69011791,62657.0,62656.0,0.64605848]
[1721046099843,0.69011791,62657.0,62656.0,0.96526148]
[1721046100046,0.70411791,62657.0,62656.0,0.96526148]
[1721046100629,0.19011791,62657.0,62656.0,0.96526148]
[1721046100834,0.16211791,62657.0,62656.0,0.96526148]
[1721046102239,0.18611791,62657.0,62656.0,0.96526148]
[1721046103352,0.024,62657.0,62656.0,1.28446448]
[1721046103555,0.024,62657.0,62656.0,1.40446448]
[1721046103957,0.024,62657.0,62656.0,1.72366748]
[1721046105044,0.04775049,62684.0,62677.0,0.1428]
[1721046105235,0.16211791,62680.0,62677.0,0.1428]
[1721046105432,0.16211791,62680.0,62679.0,0.159543]
[1721046105633,0.16211791,62680.0,62679.0,0.478629]
[1721046105953,0.16211791,62680.0,62679.0,1.35979978]
[1721046106157,0.16211791,62680.0,62679.0,0.945624]
[1721046106969,0.17611791,62680.0,62679.0,0.945624]
[1721046107171,0.19011791,62680.0,62679.0,0.945624]
[1721046107373,0.17611791,62680.0,62679.0,0.945624]
[1721046107574,0.16211791,62680.0,62679.0,1.08512278]
[1721046108779,0.16411791,62680.0,62679.0,1.09538164]
[1721046108981,0.16611791,62680.0,62679.0,1.09538164]
[1721046109997,0.24717029,62680.0,62679.0,1.09527264]
[1721046110223,0.24717029,62680.0,62679.0,0.29755764]
[1721046110421,0.24717029,62680.0,62679.0,0.77629564]
[1721046110624,0.66611791,62680.0,62679.0,0.63679686]
[1721046112116,0.66611791,62680.0,62679.0,0.31760186]
[1721046112443,0.66411791,62680.0,62679.0,0.31771086]
[1721046112646,0.66411791,62680.0,62679.0,0.73239835]
[1721046112856,0.66211791,62680.0,62679.0,0.73239835]
[1721046113077,0.66411791,62680.0,62679.0,1.05148435]
[1721046113287,0.66611791,62680.0,62679.0,1.05148435]
[1721046114479,0.004,62680.0,62679.0,1.49057035]
[1721046115423,0.002,62680.0,62679.0,1.49057035]
[1721046115555,0.004,62680.0,62679.0,1.49057035]
[1721046116206,0.002,62680.0,62679.0,1.49057035]
[1721046116412,0.004,62680.0,62679.0,1.49357035]
[1721046116583,0.002,62680.0,62679.0,1.49357035]
[1721046116784,0.5,62687.0,62679.0,1.49757035]
[1721046117017,0.5,62687.0,62686.0,0.539184]
[1721046117236,0.563928,62689.0,62688.0,0.159629]
[1721046117617,0.563928,62689.0,62688.0,0.16923521]
[1721046117838,0.563928,62689.0,62688.0,0.20246621]
[1721046118045,0.063928,62689.0,62688.0,0.20246621]
[1721046118451,0.5,62690.0,62688.0,0.84054621]
[1721046118730,0.58105238,62694.0,62693.0,0.159507]
[1721046119115,0.58105238,62694.0,62693.0,0.16909363]
[1721046119116,0.64497638,62694.0,62693.0,0.16909363]
[1721046119316,0.58105238,62694.0,62693.0,0.00958663]
[1721046119720,0.58105238,62694.0,62691.0,0.15951]
[1721046119721,0.64497638,62694.0,62692.0,0.159508]
[1721046120208,0.65597638,62694.0,62693.0,0.001]
[1721046120719,0.82909429,62694.0,62693.0,0.001]
[1721046120941,0.82909429,62694.0,62693.0,0.01058663]
[1721046121756,0.81809429,62694.0,62693.0,0.07582096]
[1721046122095,0.74804191,62694.0,62693.0,0.29813696]
[1721046122307,0.18411791,62694.0,62693.0,0.29813696]
[1721046122513,0.17311791,62694.0,62693.0,0.29813696]
[1721046122723,0.18411791,62694.0,62693.0,0.29913696]
[1721046123128,0.68411791,62694.0,62693.0,0.13952096]
[1721046123331,0.68411791,62694.0,62693.0,0.07682096]
[1721046124115,0.68411791,62694.0,62693.0,0.23632796]
[1721046124733,0.68411791,62694.0,62693.0,0.23643696]
[1721046125588,0.18411791,62694.0,62693.0,0.94036496]
[1721046125942,0.022,62694.0,62693.0,1.33847896]
[1721046126150,0.063917,62700.0,62699.0,0.145109]
[1721046126347,0.00258995,62714.0,62699.0,0.145109]
[1721046126348,0.5,62708.0,62707.0,0.30788]
[1721046126551,0.16211791,62708.0,62707.0,0.30788]
[1721046126753,0.66211791,62708.0,62707.0,0.31741183]
[1721046126952,0.66211791,62708.0,62707.0,0.34915301]
[1721046127363,0.66211791,62708.0,62707.0,0.66809601]
[1721046127917,0.16211791,62708.0,62707.0,0.66809601]
[1721046128417,0.16211791,62708.0,62707.0,0.66798701]
[1721046128622,0.16211791,62708.0,62707.0,0.34904401]
[1721046128795,0.16211791,62708.0,62707.0,0.18957301]
[1721046129242,0.17711791,62708.0,62707.0,0.35104401]
[1721046131072,0.17794791,62708.0,62707.0,0.35104401]
[1721046131419,0.17794791,62708.0,62707.0,0.04327301]
[1721046131624,0.33741691,62708.0,62707.0,0.04327301]
[1721046131827,0.36041691,62708.0,62707.0,0.01153183]
[1721046132035,1.11818391,62708.0,62707.0,0.01153183]
[1721046132238,1.11818391,62708.0,62707.0,0.002]
[1721046133352,0.67935491,62708.0,62707.0,0.002]
[1721046134329,0.99829291,62708.0,62707.0,0.002]
[1721046136867,1.11818391,62708.0,62707.0,0.002]
[1721046137775,1.43712191,62708.0,62707.0,0.002]
[1721046140929,0.01583,62708.0,62707.0,1.060166]
[1721046141155,0.01583,62708.0,62707.0,1.5078956]
[1721046141358,0.01583,62708.0,62707.0,1.57262254]
[1721046141553,0.01583,62708.0,62707.0,1.75538893]
[1721046141729,0.01583,62708.0,62707.0,1.62293016]
[1721046142335,0.00083,62708.0,62707.0,1.62093016]
[1721046142799,0.00583,62708.0,62707.0,1.62193016]
[1721046143010,0.00583,62708.0,62707.0,1.75439005]
[1721046143219,0.00083,62708.0,62707.0,1.62093016]
[1721046143599,0.00183,62708.0,62707.0,1.63893016]
[1721046144404,0.00183,62708.0,62707.0,2.09033425]
[1721046144598,0.00183,62708.0,62707.0,2.45843425]
[1721046144798,0.00183,62708.0,62707.0,2.25843425]
[1721046145178,0.00834,62719.0,62713.0,1.236304]
[1721046145385,0.01140353,62720.0,62713.0,1.78232468]
[1721046145584,0.00834,62720.0,62713.0,1.64986359]
[1721046146083,0.00834,62720.0,62713.0,1.78231147]
[1721046146549,0.00834,62720.0,62713.0,1.78231232]
[1721046146754,0.00834,62720.0,62713.0,1.86324179]
[1721046146984,0.00834,62720.0,62713.0,1.73079306]
[1721046147451,0.00834,62720.0,62713.0,1.73679306]
[1721046147452,0.00358995,62714.0,62713.0,1.73679306]
[1721046148400,0.00358995,62714.0,62713.0,1.80209306]
[1721046153448,0.00358995,62714.0,62713.0,1.68209306]
[1721046153652,0.00358995,62714.0,62713.0,1.355827]
[1721046153865,0.00358995,62714.0,62713.0,1.08399704]
[1721046154080,0.16570786,62714.0,62713.0,0.640401]
[1721046154896,0.16470786,62714.0,62713.0,0.953314]
[1721046155127,0.16470786,62714.0,62713.0,0.946314]
[1721046155408,0.00458995,62714.0,62713.0,1.346627]
[1721046155905,0.00258995,62714.0,62713.0,1.346627]
[1721046156047,0.00458995,62714.0,62713.0,1.346627]
[1721046156515,0.00558995,62714.0,62713.0,1.346627]
[1721046156837,0.00258995,62714.0,62713.0,1.346627]
[1721046157237,0.00258995,62714.0,62713.0,1.466627]
[1721046157435,0.00258995,62714.0,62713.0,1.694327]
[1721046157850,0.00258995,62714.0,62713.0,1.74141004]
[1721046158051,0.00258995,62714.0,62713.0,2.26032304]
[1721046158257,0.00258995,62714.0,62713.0,2.20941608]
[1721046158479,0.00458995,62714.0,62713.0,2.20941608]
[1721046158681,0.00258995,62714.0,62713.0,2.34185406]
[1721046158881,0.00258995,62714.0,62713.0,2.20941608]
[1721046159107,0.00358995,62714.0,62713.0,2.22041608]
[1721046159381,0.00358995,62714.0,62713.0,2.22037582]
[1721046160186,0.00358995,62714.0,62713.0,2.21637582]
[1721046160627,0.00458995,62714.0,62713.0,2.22637582]
[1721046163098,0.00458995,62714.0,62713.0,2.18128278]
[1721046164115,0.00458995,62714.0,62713.0,2.54938278]
[1721046164319,0.00458995,62714.0,62713.0,2.59447582]
[1721046164792,0.00458995,62714.0,62713.0,2.39447582]
[1721046165201,0.00458995,62714.0,62713.0,1.78746282]
[1721046165384,0.00458995,62714.0,62713.0,1.86037978]
[1721046165584,0.00458995,62714.0,62713.0,1.81528674]
[1721046166973,0.00458995,62714.0,62713.0,2.13419974]
[1721046169996,0.00458995,62714.0,62713.0,2.01419974]
[1721046170357,0.00458995,62714.0,62713.0,0.50913127]
[1721046170557,0.00458995,62714.0,62713.0,0.82804427]
[1721046171823,0.00358995,62714.0,62713.0,0.81704427]
[1721046172167,0.00458995,62714.0,62713.0,0.81704427]
[1721046172388,0.00358995,62714.0,62713.0,0.62794039]
[1721046172990,0.00258995,62714.0,62713.0,0.61794039]
[1721046173213,0.00458995,62714.0,62713.0,0.61794039]
[1721046173415,0.16670786,62714.0,62713.0,0.61794039]
[1721046173593,0.16670786,62714.0,62713.0,0.29902739]
[1721046173932,0.16470786,62714.0,62713.0,0.29902739]
[1721046174127,0.16770786,62714.0,62713.0,0.29902739]
[1721046174514,0.16770786,62714.0,62713.0,0.61794039]
[1721046174725,0.16470786,62714.0,62713.0,0.61794039]
[1721046174935,0.16670786,62714.0,62713.0,0.29902739]
[1721046175127,0.16670786,62714.0,62713.0,0.29891839]
[1721046175328,0.16870786,62714.0,62713.0,0.29891839]
[1721046175465,0.16870786,62714.0,62713.0,0.61794039]
[1721046175670,0.16670786,62714.0,62713.0,0.00969353]
[1721046175870,0.16670786,62714.0,62709.0,0.000109]
[1721046176092,0.16211791,62713.0,62712.0,0.000109]
[1721046176295,0.16211791,62713.0,62712.0,0.16739123]
[1721046176560,0.16211791,62713.0,62712.0,0.00793223]
[1721046176757,0.16211791,62713.0,62712.0,0.09176874]
[1721046176987,0.16211791,62713.0,62712.0,0.25122774]
[1721046177363,0.16211791,62713.0,62712.0,0.57014574]
[1721046177793,0.16211791,62713.0,62712.0,0.57003674]
[1721046177995,0.16211791,62713.0,62712.0,0.25111874]
[1721046178335,0.16311791,62713.0,62712.0,0.25111874]
[1721046178782,0.16311791,62713.0,62712.0,0.25122774]
[1721046178985,0.16311791,62713.0,62712.0,0.57014574]
[1721046179202,0.16311791,62713.0,62712.0,0.88906374]
[1721046179408,0.001,62713.0,62712.0,1.38898174]
[1721046179612,0.001,62713.0,62712.0,1.47068174]
[1721046179995,0.00258995,62714.0,62712.0,1.47068174]
[1721046180199,0.00258995,62714.0,62713.0,1.49426082]
[1721046180557,0.00258995,62714.0,62713.0,1.50218992]
[1721046180942,0.00258995,62714.0,62713.0,1.62218992]
[1721046181582,0.00258995,62714.0,62713.0,1.68718992]
[1721046182378,0.00258995,62714.0,62713.0,1.69118992]
[1721046182799,0.00258995,62714.0,62713.0,1.56718992]
[1721046183037,0.00258995,62714.0,62713.0,1.34530127]
[1721046183202,0.00358995,62714.0,62713.0,0.70747527]
[1721046183404,0.00358995,62714.0,62713.0,0.64247527]
[1721046183806,0.00358995,62714.0,62713.0,0.96138827]
[1721046184841,0.00358995,62714.0,62713.0,0.96438827]
[1721046185475,0.00358995,62714.0,62713.0,0.96138827]
[1721046185803,0.00458995,62714.0,62713.0,0.96838827]
[1721046186647,0.00458995,62714.0,62713.0,0.64947527]
[1721046187365,0.00458995,62714.0,62713.0,0.96838827]
[1721046188527,0.00458995,62714.0,62713.0,1.08838827]
[1721046188743,0.00458995,62714.0,62713.0,0.96838827]
[1721046188930,0.00458995,62714.0,62713.0,1.55250127]
[1721046189132,0.00458995,62714.0,62713.0,1.72060127]
[1721046189471,0.00458995,62714.0,62713.0,1.76569431]
[1721046189608,0.00458995,62714.0,62713.0,1.86569431]
[1721046189840,0.00458995,62714.0,62713.0,2.18460731]
[1721046191142,0.00458995,62714.0,62713.0,2.13951427]
[1721046192887,0.00458995,62714.0,62713.0,2.92054518]
[1721046193120,0.00458995,62714.0,62713.0,2.30163218]
[1721046193353,0.00458995,62714.0,62713.0,2.40163218]
[1721046194002,0.00458995,62714.0,62713.0,2.60163218]
[1721046194260,0.00458995,62714.0,62713.0,2.40163218]
[1721046194779,0.00458995,62714.0,62713.0,2.60163218]
[1721046195065,0.00458995,62714.0,62713.0,2.76601709]
[1721046195285,0.00458995,62714.0,62713.0,3.31263009]
[1721046195776,0.00458995,62714.0,62713.0,3.30563009]
[1721046195777,0.00358995,62714.0,62713.0,3.30563009]
[1721046196010,0.00258995,62714.0,62713.0,3.06893009]
[1721046196258,0.00258995,62714.0,62713.0,3.07992866]
[1721046196486,0.00358995,62714.0,62713.0,3.07992866]
[1721046196697,0.00258995,62714.0,62713.0,3.29662866]
[1721046196901,0.00358995,62714.0,62713.0,3.31154166]
[1721046197167,0.00358995,62714.0,62713.0,2.57392866]
[1721046197682,0.00358995,62714.0,62713.0,2.43250518]
[1721046197920,0.00358995,62714.0,62713.0,2.17038727]
[1721046198155,0.00358995,62714.0,62713.0,2.13842727]
[1721046198617,0.00358995,62714.0,62713.0,2.15242727]
[1721046199092,0.00258995,62714.0,62713.0,2.12442727]
[1721046199496,0.00258995,62714.0,62713.0,2.13842727]
[1721046201101,0.00258995,62714.0,62713.0,2.33842727]
[1721046201517,0.00258995,62714.0,62713.0,2.13842727]
[1721046201905,0.00258995,62714.0,62713.0,2.17038727]
[1721046202300,0.00258995,62714.0,62713.0,2.13842727]
[1721046202500,0.00258995,62714.0,62713.0,2.15242727]
[1721046202501,0.00358995,62714.0,62713.0,2.15242727]
[1721046204122,0.00358995,62714.0,62713.0,2.35242727]
[1721046204314,0.00358995,62714.0,62713.0,2.15242727]
[1721046205103,0.00358995,62714.0,62713.0,2.35242727]
[1721046205336,0.00358995,62714.0,62713.0,2.15242727]
[1721046206304,0.00358995,62714.0,62713.0,2.18438727]
[1721046207205,0.00358995,62714.0,62713.0,2.38438727]
[1721046208186,0.00358995,62714.0,62713.0,2.96541818]
[1721046208390,0.00358995,62714.0,62713.0,2.41454518]
[1721046208784,0.00358995,62714.0,62713.0,2.73345818]
[1721046209242,0.00358995,62714.0,62713.0,2.76541818]
[1721046209387,0.00358995,62714.0,62713.0,2.89784678]
[1721046209587,0.00358995,62714.0,62713.0,2.79784678]
[1721046209789,0.00358995,62714.0,62713.0,2.66541818]
[1721046210207,0.00358995,62714.0,62713.0,2.96541818]
[1721046210413,0.00358995,62714.0,62713.0,2.99784678]
[1721046210636,0.00358995,62714.0,62713.0,2.34650518]
[1721046210833,0.00358995,62714.0,62713.0,2.47893346]
[1721046211013,0.00358995,62714.0,62713.0,2.44650518]
[1721046211211,0.00358995,62714.0,62713.0,2.15242727]
[1721046211893,0.00358995,62714.0,62713.0,1.30021427]
[1721046212996,0.00358995,62714.0,62713.0,1.27221427]
[1721046212997,0.00258995,62714.0,62713.0,1.27221427]
[1721046213348,0.00258995,62714.0,62713.0,1.28621427]
[1721046213915,0.00258995,62714.0,62713.0,1.30021427]
[1721046213916,0.00358995,62714.0,62713.0,1.30021427]
[1721046218239,0.00358995,62714.0,62713.0,1.42021427]
[1721046218450,0.00358995,62714.0,62713.0,1.56231427]
[1721046219561,0.00358995,62714.0,62713.0,1.44231427]
[1721046219764,0.00358995,62714.0,62713.0,1.56231427]
[1721046221431,0.00358995,62714.0,62713.0,1.48341427]
[1721046225969,0.00358995,62714.0,62713.0,1.36341427]
[1721046226171,0.00358995,62714.0,62713.0,1.30021427]
[1721046227306,0.00358995,62714.0,62713.0,1.42021427]
[1721046228294,0.00358995,62714.0,62713.0,1.73912727]
[1721046228515,0.00358995,62714.0,62713.0,1.42021427]
[1721046228893,0.00358995,62714.0,62713.0,1.73912727]
[1721046229985,0.00358995,62714.0,62713.0,1.42021427]
[1721046230638,0.00358995,62714.0,62713.0,1.73912727]
[1721046231595,0.00358995,62714.0,62713.0,1.77108727]
[1721046234096,0.00358995,62714.0,62713.0,1.91208727]
[1721046235761,0.00358995,62714.0,62713.0,1.30021427]
[1721046239593,0.00358995,62714.0,62713.0,1.88742727]
[1721046240365,0.00358995,62714.0,62713.0,1.56851427]
[1721046240792,0.00358995,62714.0,62713.0,1.88742727]
[1721046240955,0.00358995,62714.0,62713.0,1.44851427]
[1721046241151,0.00358995,62714.0,62713.0,1.30021427]
[1721046242888,0.00358995,62714.0,62713.0,1.42021427]
[1721046243695,0.00358995,62714.0,62713.0,1.30021427]
[1721046248505,0.00358995,62714.0,62713.0,1.42021427]
[1721046252670,0.14288995,62714.0,62713.0,0.1962981]
[1721046252844,0.80500786,62714.0,62713.0,0.0368421]
[1721046253219,0.80500786,62714.0,62713.0,0.028913]
[1721046253220,0.85285456,62714.0,62713.0,0.028913]
[1721046253547,0.8518477,62714.0,62713.0,0.014913]
[1721046253707,0.80707139,62714.0,62713.0,0.02367537]
[1721046253903,0.80807139,62714.0,62713.0,0.01767537]
[1721046254169,1.72216886,62714.0,62713.0,0.01767537]
[1721046254352,1.86478055,62714.0,62713.0,0.008913]
[1721046254552,1.74416886,62714.0,62713.0,0.000913]
[1721046254761,1.74916886,62714.0,62713.0,0.000913]
[1721046254901,1.74916886,62714.0,62713.0,0.010913]
[1721046255104,1.86874613,62714.0,62713.0,0.010913]
[1721046255347,1.74916886,62714.0,62713.0,0.010913]
[1721046255547,1.75216886,62714.0,62713.0,0.010913]
[1721046255720,1.75216886,62714.0,62713.0,0.000913]
[1721046255926,2.07107686,62714.0,62713.0,0.000913]
[1721046256127,2.09912858,62714.0,62713.0,0.000913]
[1721046256463,2.06607686,62714.0,62713.0,0.000913]
[1721046256965,2.06607686,62714.0,62713.0,0.001913]
[1721046256966,2.07507686,62714.0,62713.0,0.001913]
[1721046257413,2.07507686,62714.0,62713.0,0.000913]
[1721046257414,2.06607686,62714.0,62713.0,0.000913]
[1721046257852,2.07807686,62714.0,62713.0,0.002913]
[1721046258217,2.07207686,62714.0,62713.0,0.001913]
[1721046258423,2.19151127,62714.0,62713.0,0.001913]
[1721046258601,2.19451127,62714.0,62713.0,0.002913]
[1721046259187,2.07507686,62714.0,62713.0,0.002913]
[1721046259437,2.19450724,62714.0,62713.0,0.002913]
[1721046259617,2.07507686,62714.0,62713.0,0.002913]
[1721046260187,0.33900786,62714.0,62713.0,0.002913]
[1721046260388,0.31907139,62714.0,62713.0,0.481391]
[1721046260592,0.31600786,62714.0,62713.0,0.53829247]
[1721046260861,0.31600786,62714.0,62713.0,0.05981447]
[1721046261170,0.31600786,62714.0,62713.0,0.05992347]
[1721046261307,0.31600786,62714.0,62713.0,0.05981447]
[1721046261721,0.31907139,62714.0,62713.0,0.05992347]
[1721046261986,0.25560786,62714.0,62713.0,0.85709647]
[1721046262281,0.17670786,62714.0,62713.0,0.85720547]
[1721046263025,0.17670786,62714.0,62713.0,0.80906637]
[1721046263226,0.16770786,62714.0,62713.0,0.80806637]
[1721046263815,0.17170786,62714.0,62713.0,0.80806637]
[1721046264149,0.16870786,62714.0,62713.0,0.80706637]
[1721046264533,0.17170786,62714.0,62713.0,0.94894561]
[1721046265389,0.00958995,62714.0,62713.0,0.94894561]
[1721046265587,0.00958995,62714.0,62713.0,1.26785861]
[1721046266419,0.00558995,62714.0,62713.0,1.26785861]
[1721046266582,0.00258995,62714.0,62713.0,1.26785861]
[1721046266781,0.00558995,62714.0,62713.0,1.26785861]
[1721046267207,0.00258995,62714.0,62713.0,1.26785861]
[1721046267984,0.00358995,62714.0,62713.0,1.34765861]
[1721046268253,0.00258995,62714.0,62713.0,1.34765861]
[1721046268604,0.00258995,62714.0,62713.0,1.34865861]
[1721046268783,0.00258995,62714.0,62713.0,1.34765861]
[1721046269212,0.00258995,62714.0,62713.0,1.34965861]
[1721046269414,0.00258995,62714.0,62713.0,1.34765861]
[1721046269974,0.00258995,62714.0,62713.0,1.35165861]
[1721046270404,0.00258995,62714.0,62713.0,1.85117161]
[1721046270868,0.00258995,62714.0,62713.0,1.85017161]
[1721046271274,0.00258995,62714.0,62713.0,1.85217161]
[1721046275824,0.00258995,62714.0,62713.0,1.73217161]
[1721046277634,0.00258995,62714.0,62713.0,1.85217161]
[1721046278038,0.00258995,62714.0,62713.0,2.63918461]
[1721046278440,0.00258995,62714.0,62713.0,2.67114461]
[1721046278643,0.00258995,62714.0,62713.0,2.47114461]
[1721046278819,0.00258995,62714.0,62713.0,2.67114461]
[1721046279038,0.00258995,62714.0,62713.0,2.46814461]
[1721046279509,0.00258995,62714.0,62713.0,2.68014461]
[1721046279789,0.00258995,62714.0,62713.0,2.66614461]
[1721046280082,0.00258995,62714.0,62713.0,2.68014461]
[1721046280622,0.00258995,62714.0,62713.0,2.95226252]
[1721046281277,0.00258995,62714.0,62713.0,2.94226252]
[1721046281821,0.00258995,62714.0,62713.0,2.95626252]
[1721046282206,0.00258995,62714.0,62713.0,2.65626252]
[1721046282387,0.00258995,62714.0,62713.0,2.17523161]
[1721046285203,0.00258995,62714.0,62713.0,2.14327161]
[1721046286329,0.00258995,62714.0,62713.0,2.17523161]
[1721046289547,0.00258995,62714.0,62713.0,2.14327161]
[1721046289911,0.00258995,62714.0,62713.0,1.97517161]
[1721046292002,0.00258995,62714.0,62713.0,1.39585861]
[1721046292699,0.00258995,62714.0,62713.0,1.51585861]
[1721046293018,0.00258995,62714.0,62713.0,1.50185861]
[1721046293147,0.00258995,62714.0,62713.0,1.51485861]
[1721046293556,0.00258995,62714.0,62713.0,1.50185861]
[1721046293960,0.00258995,62714.0,62713.0,1.50085861]
[1721046294157,0.00258995,62714.0,62713.0,1.51285861]
[1721046294158,0.00358995,62714.0,62713.0,1.51285861]
[1721046294407,0.00358995,62714.0,62713.0,1.39285861]
[1721046296530,0.00358995,62714.0,62713.0,1.51285861]
[1721046297025,0.00358995,62714.0,62713.0,2.07997161]
[1721046297225,0.00358995,62714.0,62713.0,2.14337161]
[1721046297656,0.00358995,62714.0,62713.0,2.34337161]
[1721046297831,0.00358995,62714.0,62713.0,1.97527161]
[1721046298177,0.00358995,62714.0,62713.0,2.37107161]
[1721046298376,0.00358995,62714.0,62713.0,2.20297161]
[1721046300062,0.00358995,62714.0,62713.0,2.12287161]
[1721046300434,0.00358995,62714.0,62713.0,2.00287161]
[1721046301187,0.00358995,62714.0,62713.0,1.52055861]
[1721046301390,0.00358995,62714.0,62713.0,0.97394561]
[1721046301797,0.00358995,62714.0,62713.0,1.29285861]
[1721046302388,0.00358995,62714.0,62713.0,1.38375861]
[1721046302789,0.00358995,62714.0,62713.0,1.37075861]
[1721046302985,0.00358995,62714.0,62713.0,1.37275861]
[1721046303212,0.00258995,62714.0,62713.0,1.48075861]
[1721046303424,0.00258995,62714.0,62713.0,1.48175861]
[1721046303614,0.00258995,62714.0,62713.0,1.48375861]
[1721046304048,0.00258995,62714.0,62713.0,1.47875861]
[1721046304228,0.00258995,62714.0,62713.0,1.85787161]
[1721046304431,0.00258995,62714.0,62713.0,1.86887161]
[1721046305033,0.00258995,62714.0,62713.0,1.86387161]
[1721046306905,0.00258995,62714.0,62713.0,1.86487161]
[1721046307209,0.00258995,62714.0,62713.0,1.85787161]
[1721046307320,0.00358995,62714.0,62713.0,1.96687161]
[1721046307543,0.00358995,62714.0,62713.0,2.05567161]
[1721046310052,0.00358995,62714.0,62713.0,2.25567161]
[1721046310878,0.00358995,62714.0,62713.0,2.22377161]
[1721046311080,0.00358995,62714.0,62713.0,2.55620589]
[1721046311502,0.00358995,62714.0,62713.0,2.87511676]
[1721046311679,0.00358995,62714.0,62713.0,2.55620376]
[1721046312090,0.00358995,62714.0,62713.0,3.13723467]
[1721046312648,0.00358995,62714.0,62713.0,3.14223467]
[1721046313051,0.00358995,62714.0,62713.0,3.14222924]
[1721046313546,0.00358995,62714.0,62713.0,3.1422285]
[1721046314304,0.00358995,62714.0,62713.0,3.1898928]
[1721046314503,0.00358995,62714.0,62713.0,3.1422285]
[1721046315348,0.00358995,62714.0,62713.0,3.1898928]
[1721046316143,0.00358995,62714.0,62713.0,3.18989671]
[1721046316351,0.00358995,62714.0,62713.0,3.14222712]
[1721046316568,0.00358995,62714.0,62713.0,3.18990271]
[1721046317481,0.00358995,62714.0,62713.0,3.14222712]
[1721046317683,0.00358995,62714.0,62713.0,3.18990157]
[1721046318079,0.00358995,62714.0,62713.0,3.14222712]
[1721046318696,0.00358995,62714.0,62713.0,3.18989891]
[1721046318941,0.00358995,62714.0,62713.0,3.14222712]
[1721046319097,0.00358995,62714.0,62713.0,3.21373151]
[1721046319300,0.00834,62720.0,62719.0,2.17396]
[1721046319506,0.00834,62720.0,62719.0,3.0136626]
[1721046319691,0.00834,62720.0,62719.0,2.96599888]
[1721046319903,0.00834,62720.0,62719.0,3.31957096]
[1721046320512,0.00834,62720.0,62719.0,3.71190279]
[1721046320748,0.00834,62720.0,62719.0,3.84197395]
[1721046320949,0.00834,62720.0,62719.0,3.87392395]
[1721046321475,0.00834,62720.0,62719.0,3.51835187]
[1721046321608,0.00834,62720.0,62719.0,3.44690204]
[1721046321995,0.00834,62720.0,62719.0,3.44390204]
[1721046322627,0.00834,62720.0,62719.0,3.49149112]
[1721046322831,0.00834,62720.0,62719.0,2.49309121]
[1721046323012,0.00834,62720.0,62719.0,2.53640213]
[1721046323422,0.00834,62720.0,62719.0,2.11462013]
[1721046323799,0.00834,62720.0,62719.0,2.23252013]
[1721046324157,0.00083,62725.0,62724.0,1.384099]
[1721046324403,0.00834,62739.0,62731.0,1.549682]
[1721046324604,0.00834,62739.0,62731.0,2.45347091]
[1721046324827,0.00834,62739.0,62731.0,2.90467456]
[1721046325029,0.00834,62739.0,62731.0,3.06679247]
[1721046325232,0.00834,62739.0,62731.0,3.16679247]
[1721046325436,0.00834,62739.0,62736.0,2.095841]
[1721046325565,0.00834,62739.0,62736.0,2.286741]
[1721046325829,0.00834,62739.0,62736.0,2.405537]
[1721046325980,0.00834,62739.0,62736.0,2.53260816]
[1721046326391,0.00834,62739.0,62736.0,2.66870816]
[1721046326592,0.00834,62739.0,62736.0,2.34991216]
[1721046327335,0.00834,62739.0,62736.0,2.36391216]
[1721046327677,0.00834,62739.0,62736.0,2.37791216]
[1721046334822,0.00834,62739.0,62736.0,1.91676216]
[1721046335025,0.00834,62739.0,62736.0,2.03676216]
[1721046336488,0.00834,62739.0,62736.0,2.11386216]
[1721046336701,0.00834,62739.0,62736.0,2.17666216]
[1721046337328,0.00834,62739.0,62736.0,3.47642207]
[1721046337529,0.00834,62739.0,62738.0,2.095696]
[1721046337724,0.00834,62739.0,62738.0,2.67659991]
[1721046339044,0.00834,62739.0,62738.0,2.69059991]
[1721046339595,0.00834,62739.0,62738.0,3.09538591]
[1721046339714,0.00834,62739.0,62738.0,3.10938591]
[1721046340072,0.00834,62739.0,62738.0,3.27150382]
[1721046340666,0.00834,62739.0,62738.0,3.28550382]
[1721046341242,0.00834,62739.0,62738.0,3.43186651]
[1721046341652,0.00834,62739.0,62738.0,3.43186545]
[1721046342716,0.00834,62743.0,62742.0,0.520109]
[1721046342913,0.002,62749.0,62742.0,0.520109]
[1721046342914,0.002,62749.0,62748.0,0.923026]
[1721046343158,0.0797,62769.0,62768.0,0.478058]
[1721046343362,0.0797,62769.0,62768.0,1.115324]
[1721046343636,0.0797,62769.0,62768.0,1.433957]
[1721046344467,0.002,62769.0,62768.0,1.553957]
[1721046344710,0.002,62769.0,62768.0,1.69583624]
[1721046344867,0.002,62769.0,62768.0,1.66427357]
[1721046345500,0.002,62769.0,62768.0,1.74867357]
[1721046345700,0.002,62769.0,62768.0,1.81994623]
[1721046346279,0.002,62769.0,62768.0,2.02219623]
[1721046346682,0.002,62769.0,62768.0,2.03519623]
[1721046347299,0.002,62769.0,62768.0,2.02619623]
[1721046347476,0.002,62769.0,62768.0,2.03619623]
[1721046347874,0.002,62769.0,62768.0,2.05019623]
[1721046348472,0.002,62769.0,62768.0,2.06419623]
[1721046348668,0.002,62769.0,62768.0,2.16419623]
[1721046348804,0.002,62769.0,62768.0,2.12219623]
[1721046349002,0.002,62769.0,62768.0,2.56962448]
[1721046349236,0.002,62769.0,62768.0,2.60157448]
[1721046349387,0.002,62769.0,62768.0,2.94889714]
[1721046349591,0.00833,62777.0,62770.0,2.053853]
[1721046349868,0.00833,62777.0,62770.0,2.82441657]
[1721046350051,0.00833,62777.0,62776.0,1.535125]